bitfinex-derivatives/quotes_SOLF0:USTF0_20241010
["timestamp","ask_amount","ask_price","bid_price","bid_amount"]
[1728562401377,3.5695,140.22,140.21,0.12502]
[1728562409483,3.5689,140.25,140.21,11.09502]
[1728562409685,5.06,140.26,140.24,10.97]
[1728562410077,3.5649066,140.28,140.24,14.539]
[1728562410078,3.5683,140.27,140.24,14.539]
[1728562410285,8.6249066,140.28,140.24,14.539]
[1728562410886,3.5684,140.27,140.24,14.539]
[1728562411293,1.334,140.34,140.26,10.97]
[1728562411492,5.06,140.32,140.29,10.97]
[1728562411893,3.5674,140.31,140.29,10.97]
[1728562412290,5.06,140.32,140.29,10.97]
[1728562412486,3.5675,140.3,140.29,10.97]
[1728562416393,8.6271,140.32,140.29,14.5377]
[1728562416595,8.6271,140.32,140.31,10.97]
[1728562417990,8.6271,140.32,140.3,10.97]
[1728562423308,8.6271,140.32,140.29,3.5677]
[1728562423511,5.06,140.32,140.24,5.06]
[1728562423704,5.06,140.32,140.28,10.97]
[1728562424008,3.5674,140.31,140.29,10.97]
[1728562424598,5.06,140.32,140.24,5.06]
[1728562424804,3.5677,140.3,140.28,10.97]
[1728562426311,3.5677,140.3,140.28,10.97]
[1728562426612,3.5677,140.3,140.29,10.97]
[1728562433504,3.5677,140.3,140.27,3.5682]
[1728562433812,5.06,140.32,140.29,10.97]
[1728562434007,5.06,140.32,140.31,10.97]
[1728562434606,0.12502,140.33,140.31,10.97]
[1728562434916,0.12502,140.33,140.32,10.97]
[1728562436613,55.05836899,140.39,140.32,10.97]
[1728562436813,55.05836899,140.39,140.36,10.97]
[1728562436814,5.06,140.38,140.36,10.97]
[1728562437014,58.74466899,140.39,140.36,10.97]
[1728562437211,3.5656,140.38,140.36,10.97]
[1728562437614,58.74466899,140.39,140.36,10.97]
[1728562437811,3.5658,140.37,140.34,10.97]
[1728562439023,3.566,140.36,140.34,10.97]
[1728562441527,5.06,140.38,140.34,10.97]
[1728562442329,3.566,140.36,140.34,10.97]
[1728562444224,3.566,140.36,140.33,3.5666]
[1728562444526,3.5664,140.35,140.3,5.06]
[1728562444723,5.06,140.38,140.34,10.97]
[1728562445631,3.5661,140.36,140.34,10.97]
[1728562448534,3.5661,140.36,140.34,14.5364]
[1728562449031,5.06,140.38,140.34,10.97]
[1728562449331,0.12502,140.39,140.35,14.536]
[1728562449734,3.5656,140.38,140.36,10.97]
[1728562450630,3.5656,140.38,140.36,14.536]
[1728562451037,0.12502,140.39,140.37,10.97]
[1728562451338,0.12502,140.39,140.38,10.97]
[1728562451830,0.12502,140.39,140.37,10.97]
[1728562451831,3.69042,140.39,140.37,10.97]
[1728562452243,3.69042,140.39,140.37,14.5356]
[1728562454131,3.69042,140.39,140.37,10.97]
[1728562456343,0.12502,140.39,140.37,10.97]
[1728562456541,3.5655,140.38,140.37,10.97]
[1728562461541,3.5661,140.36,140.34,3.5663]
[1728562461746,10.97,140.38,140.33,10.97]
[1728562462147,3.5663,140.35,140.33,3.5665]
[1728562462440,3.5663,140.35,140.33,14.5365]
[1728562462643,3.5662,140.35,140.34,10.97]
[1728562464548,3.5661,140.36,140.34,14.5365]
[1728562465544,16.13502,140.39,140.34,10.97]
[1728562465747,5.16502,140.39,140.36,10.97]
[1728562466146,3.5658,140.37,140.36,10.97]
[1728562469446,3.5656,140.38,140.36,10.97]
[1728562471149,3.5656,140.38,140.36,14.5359]
[1728562471654,3.5656,140.38,140.36,10.97]
[1728562472850,3.69032,140.39,140.37,10.97]
[1728562473052,3.69032,140.39,140.37,14.5356]
[1728562474064,3.69032,140.39,140.37,10.97]
[1728562476061,3.69032,140.39,140.37,14.5356]
[1728562476861,3.69032,140.39,140.37,10.97]
[1728562477063,3.5655,140.38,140.36,14.5359]
[1728562477868,0.12502,140.39,140.3,3.9863]
[1728562478055,3.5658,140.37,140.3,3.9863]
[1728562478362,3.5658,140.37,140.35,10.97]
[1728562480165,3.5658,140.37,140.35,14.5361]
[1728562480460,3.5658,140.37,140.35,10.97]
[1728562484960,3.5658,140.37,140.35,14.5361]
[1728562491267,3.5658,140.37,140.35,10.97]
[1728562495467,3.566,140.36,140.32,5.04]
[1728562495669,3.566,140.36,140.34,10.97]
[1728562495965,3.566,140.36,140.34,14.5364]
[1728562501872,3.566,140.36,140.35,3.5662]
[1728562502076,3.5658,140.37,140.35,3.5662]
[1728562502373,3.5658,140.37,140.36,10.97]
[1728562505085,5.16502,140.39,140.36,10.97]
[1728562505283,8.73042,140.39,140.37,10.97]
[1728562505491,5.16502,140.39,140.37,10.97]
[1728562506492,0.12502,140.39,140.38,10.97]
[1728562506688,0.12502,140.39,140.38,14.5355]
[1728562509194,3.5644,140.43,140.4,3.5647]
[1728562509388,8.6041,140.44,140.41,16.34322983]
[1728562509698,5.04,140.44,140.42,5.37322983]
[1728562509887,0.12502,140.45,140.43,5.37322983]
[1728562510087,0.12502,140.45,140.44,5.37322983]
[1728562510491,0.12502,140.45,140.44,19.90722983]
[1728562511383,0.12502,140.45,140.44,16.34322983]
[1728562511589,0.12502,140.45,140.44,10.97]
[1728562511893,0.12502,140.45,140.44,16.32905976]
[1728562514900,0.12502,140.45,140.44,10.97]
[1728562515200,0.12502,140.45,140.44,19.88505085]
[1728562517795,0.12502,140.45,140.44,5.35105085]
[1728562517995,0.12502,140.45,140.44,16.32105085]
[1728562518202,0.12502,140.45,140.44,10.97]
[1728562518404,0.12502,140.45,140.44,19.87829002]
[1728562519201,0.12502,140.45,140.44,14.534]
[1728562521409,0.12502,140.45,140.44,10.97]
[1728562522312,0.12502,140.45,140.44,14.534]
[1728562523112,3.68872,140.45,140.44,10.97]
[1728562524014,3.564,140.44,140.42,2.8495]
[1728562524204,3.564,140.44,140.43,10.97]
[1728562526110,0.12502,140.45,140.43,10.97]
[1728562526415,0.12502,140.45,140.42,2.8495]
[1728562526610,0.12502,140.45,140.43,10.97]
[1728562527209,0.12502,140.45,140.42,1.4111]
[1728562527413,0.12502,140.45,140.43,10.97]
[1728562527811,3.564,140.44,140.43,10.97]
[1728562529610,3.5645,140.42,140.39,5.04]
[1728562529817,0.12502,140.45,140.42,10.97]
[1728562531619,3.5643,140.43,140.42,10.97]
[1728562532118,3.5643,140.43,140.42,16.31233069]
[1728562532617,3.5643,140.43,140.42,10.97]
[1728562532823,3.5643,140.43,140.42,16.31233131]
[1728562533115,0.12502,140.45,140.42,16.31233131]
[1728562533314,0.12502,140.45,140.44,10.97]
[1728562534421,3.68872,140.45,140.44,10.97]
[1728562539417,0.12502,140.45,140.43,10.97]
[1728562539717,3.564,140.44,140.43,10.97]
[1728562540923,3.564,140.44,140.42,3.5643]
[1728562541121,3.5646,140.42,140.39,3.565]
[1728562541316,5.16502,140.45,140.4,5.34537816]
[1728562541516,10.97,140.42,140.37,1.4414]
[1728562541817,3.5654,140.39,140.38,5.34884999]
[1728562542018,5.04,140.42,140.38,16.31884999]
[1728562542221,3.5648,140.41,140.39,16.31999979]
[1728562542416,5.04,140.42,140.4,10.97]
[1728562542617,6.4265,140.44,140.4,10.97]
[1728562543417,3.5646,140.42,140.4,14.535]
[1728562544226,3.5646,140.42,140.4,10.97]
[1728562544624,3.5647,140.41,140.39,14.5351]
[1728562545332,3.5648,140.41,140.39,10.97]
[1728562546129,6.4265,140.44,140.38,10.97]
[1728562546130,14.5929267,140.42,140.38,10.97]
[1728562546318,10.97,140.4,140.33,4.19262]
[1728562546514,10.97,140.4,140.35,10.97]
[1728562546719,10.97,140.4,140.36,16.32226057]
[1728562546925,10.97,140.4,140.37,5.35226057]
[1728562547121,3.5656,140.38,140.36,14.536]
[1728562547420,3.5656,140.38,140.37,5.352891]
[1728562550534,3.5652,140.4,140.37,19.888591]
[1728562550831,3.5652,140.4,140.38,10.97]
[1728562553825,3.5652,140.4,140.38,14.5354]
[1728562555125,3.5652,140.4,140.39,5.35509647]
[1728562557635,3.5652,140.4,140.38,10.97]
[1728562557934,3.5652,140.4,140.39,5.35677529]
[1728562558732,3.5652,140.4,140.38,10.97]
[1728562559832,3.5652,140.4,140.39,5.35808909]
[1728562560132,3.5652,140.4,140.38,10.97]
[1728562560532,8.62218106,140.42,140.38,10.97]
[1728562560733,3.565,140.4,140.39,5.35843829]
[1728562561431,3.5648,140.41,140.39,16.32843829]
[1728562561631,3.5648,140.41,140.39,10.97]
[1728562562023,3.5648,140.41,140.39,14.5352]
[1728562562221,3.5648,140.41,140.39,10.97]
[1728562563534,5.04,140.42,140.39,10.97]
[1728562563535,3.565,140.4,140.39,10.97]
[1728562563735,3.565,140.4,140.39,16.32796216]
[1728562564034,3.565,140.4,140.39,5.35796216]
[1728562565133,3.565,140.4,140.38,14.5354]
[1728562565335,3.565,140.4,140.39,5.35858497]
[1728562568229,10.97,140.41,140.34,5.04]
[1728562568429,10.97,140.41,140.39,5.36241893]
[1728562568822,10.97,140.41,140.4,5.36241893]
[1728562569029,14.56644134,140.41,140.4,5.36241893]
[1728562569229,18.13114134,140.41,140.4,5.36241893]
[1728562570537,16.01,140.43,140.38,10.97]
[1728562570831,3.5649,140.41,140.39,16.33272568]
[1728562571025,3.5649,140.41,140.4,10.97]
[1728562571231,3.5649,140.41,140.4,16.33228958]
[1728562571724,3.5645,140.42,140.4,16.33228958]
[1728562571929,3.5645,140.42,140.4,10.97]
[1728562572136,5.04,140.44,140.41,14.5346]
[1728562572941,3.5643,140.43,140.41,10.97]
[1728562573231,5.04,140.44,140.38,2.8631]
[1728562573232,16.01,140.44,140.38,2.8631]
[1728562573436,3.5647,140.42,140.39,19.89847014]
[1728562573631,16.01,140.44,140.4,5.36327014]
[1728562573927,16.01,140.44,140.41,5.36327014]
[1728562574128,3.5647,140.42,140.39,14.5352]
[1728562575438,3.5647,140.42,140.4,5.3644682]
[1728562575638,3.5647,140.42,140.41,5.3644682]
[1728562577644,14.5347,140.42,140.41,5.3644682]
[1728562579344,18.1266074,140.42,140.41,5.3644682]
[1728562579548,14.5619074,140.42,140.36,10.97]
[1728562579750,16.01,140.41,140.37,8.932051]
[1728562579938,16.01,140.41,140.37,19.902051]
[1728562580241,3.5651,140.4,140.38,5.366451]
[1728562580437,3.5651,140.4,140.39,5.366451]
[1728562580641,8.6049,140.41,140.39,5.366451]
[1728562580846,8.6049,140.41,140.4,5.366451]
[1728562582246,8.6049,140.41,140.38,14.5354]
[1728562582443,8.6047,140.41,140.4,5.3679988]
[1728562582746,5.04,140.41,140.4,5.3679988]
[1728562584448,8.6047,140.41,140.4,5.3679988]
[1728562585553,5.04,140.41,140.38,14.5354]
[1728562585740,3.565,140.4,140.38,14.5354]
[1728562586243,3.5645,140.42,140.39,19.90344208]
[1728562586443,3.5645,140.42,140.4,5.36834208]
[1728562586648,3.5645,140.42,140.41,5.36834208]
[1728562587450,14.5345,140.42,140.41,5.36834208]
[1728562590348,3.5645,140.42,140.41,5.36834208]
[1728562593157,5.04,140.44,140.41,16.33834208]
[1728562593358,5.04,140.44,140.42,5.36834208]
[1728562593753,3.5643,140.43,140.41,10.97]
[1728562594053,3.5643,140.43,140.42,5.3705148]
[1728562599466,3.5643,140.43,140.4,14.5348]
[1728562599853,3.5643,140.43,140.41,5.37483543]
[1728562600060,3.5643,140.43,140.42,5.37483543]
[1728562601661,14.5343,140.43,140.42,5.37483543]
[1728562602466,3.5653,140.39,140.36,10.97]
[1728562602764,3.5653,140.39,140.37,5.3795257]
[1728562603063,3.5653,140.39,140.36,10.97]
[1728562603064,3.5655,140.38,140.36,14.5358]
[1728562603361,10.97,140.38,140.37,5.38242968]
[1728562603768,14.5355,140.38,140.37,5.38242968]
[1728562606262,14.5355,140.38,140.34,17.3139]
[1728562606263,10.97,140.38,140.34,17.3139]
[1728562606464,3.5658,140.37,140.34,17.3139]
[1728562606662,3.5658,140.37,140.35,5.32064855]
[1728562606862,3.5658,140.37,140.36,5.32064855]
[1728562609671,3.5658,140.37,140.34,14.5362]
[1728562609970,3.5658,140.37,140.36,5.32196809]
[1728562610169,3.5658,140.37,140.35,5.32196809]
[1728562610367,3.5658,140.37,140.36,5.32196809]
[1728562613077,3.5658,140.37,140.34,14.5362]
[1728562613272,3.5658,140.37,140.36,5.32072196]
[1728562613587,3.5658,140.37,140.36,10.64089264]
[1728562615677,14.5358,140.37,140.36,10.64089264]
[1728562616179,8.6054,140.39,140.36,21.61089264]
[1728562616475,5.04,140.39,140.36,16.29072196]
[1728562616780,3.5656,140.38,140.37,5.31823435]
[1728562619976,3.5656,140.38,140.35,14.5361]
[1728562620276,3.5656,140.38,140.36,8.8828097]
[1728562620483,3.5656,140.38,140.37,5.3168097]
[1728562622581,3.5656,140.38,140.35,14.536]
[1728562622881,3.5656,140.38,140.36,5.31672413]
[1728562623177,3.5656,140.38,140.37,5.31672413]
[1728562624874,3.61029084,140.41,140.37,16.28672413]
[1728562625078,53.54436074,140.43,140.33,0.12502]
[1728562625079,5.04,140.42,140.4,10.97]
[1728562625379,5.04,140.42,140.41,16.28672413]
[1728562625581,8.6046,140.42,140.41,16.28672413]
[1728562625892,8.6046,140.42,140.41,5.31672413]
[1728562626180,8.6046,140.42,140.4,10.97]
[1728562626479,12.12096642,140.42,140.41,5.31375809]
[1728562626676,23.09096642,140.42,140.41,5.31375809]
[1728562626874,3.5654,140.39,140.36,10.97]
[1728562627179,3.5654,140.39,140.37,5.31631501]
[1728562627379,3.5654,140.39,140.38,5.31631501]
[1728562632688,3.5654,140.39,140.37,3.5657]
[1728562632886,3.5654,140.39,140.36,14.5358]
[1728562633184,3.5654,140.39,140.37,5.26246446]
[1728562633388,3.5654,140.39,140.38,5.26246446]
[1728562633990,14.5354,140.39,140.38,5.26246446]
[1728562634582,19.5754,140.39,140.38,5.26246446]
[1728562634782,16.01,140.39,140.33,11.09502]
[1728562635090,3.5662,140.36,140.34,5.26550991]
[1728562635285,3.5662,140.36,140.35,5.26550991]
[1728562635981,10.97,140.37,140.35,5.26550991]
[1728562636188,14.5359,140.37,140.34,3.5664]
[1728562636586,14.5359,140.37,140.35,5.26770056]
[1728562636785,14.5359,140.37,140.36,5.26770056]
[1728562639691,14.5359,140.37,140.34,3.5664]
[1728562639892,14.5359,140.37,140.36,5.26685527]
[1728562640195,14.5359,140.37,140.36,5.26739957]
[1728562640692,10.97,140.37,140.33,0.12502]
[1728562640990,14.5365,140.34,140.33,0.12502]
[1728562641193,19.5765,140.34,140.33,5.39576085]
[1728562641791,23.15246857,140.34,140.33,5.39576085]
[1728562641988,23.15246857,140.34,140.33,0.12502]
[1728562642589,19.58596857,140.34,140.27,0.12502]
[1728562642807,14.538,140.29,140.28,5.26906663]
[1728562643894,14.538,140.29,140.27,0.12502]
[1728562643895,3.568,140.28,140.27,0.12502]
[1728562644207,14.538,140.28,140.27,5.39597647]
[1728562644603,3.568,140.28,140.27,5.39597647]
[1728562644805,5.04,140.3,140.27,5.39597647]
[1728562645104,10.97,140.32,140.28,19.80248845]
[1728562645405,5.04,140.31,140.29,5.26468845]
[1728562645599,5.04,140.31,140.28,10.97]
[1728562646098,5.04,140.32,140.3,3.5674]
[1728562646306,5.04,140.32,140.29,10.97]
[1728562646603,8.68171906,140.32,140.3,5.25915163]
[1728562646805,8.6071,140.32,140.29,14.5376]
[1728562647206,8.6071,140.32,140.3,5.25900358]
[1728562647506,8.6071,140.32,140.29,3.5676]
[1728562648605,8.6071,140.32,140.28,10.97]
[1728562648606,3.5673,140.31,140.28,14.538]
[1728562648808,3.5673,140.31,140.29,5.25726405]
[1728562649108,3.5673,140.31,140.28,3.568]
[1728562649407,3.5673,140.31,140.29,5.25671198]
[1728562649603,3.5673,140.31,140.28,3.568]
[1728562649804,10.97,140.31,140.29,5.25503712]
[1728562650005,10.97,140.3,140.27,0.12502]
[1728562650202,10.97,140.28,140.27,0.12502]
[1728562650403,16.01,140.28,140.27,0.12502]
[1728562650706,19.578,140.28,140.27,0.12502]
[1728562657104,3.5693,140.23,140.21,0.12502]
[1728562657606,16.01,140.24,140.21,0.12502]
[1728562657803,3.5694,140.23,140.21,0.12502]
[1728562659512,3.5695,140.22,140.21,0.12502]
[1728562659816,14.5395,140.22,140.21,0.12502]
[1728562660606,3.5695,140.22,140.21,0.12502]
[1728562662311,10.97,140.23,140.21,0.12502]
[1728562662510,14.5392,140.24,140.21,3.69472]
[1728562662710,19.5792,140.24,140.21,3.69472]
[1728562662918,16.01,140.24,140.21,3.69472]
[1728562664013,19.5791,140.24,140.21,3.69472]
[1728562665707,14.5391,140.24,140.21,3.69472]
[1728562666012,16.01,140.24,140.22,3.5694]
[1728562669121,19.5791,140.24,140.22,3.5694]
[1728562670114,16.01,140.24,140.22,3.5694]
[1728562670316,5.04,140.24,140.22,3.5694]
[1728562671023,10.97,140.27,140.21,0.12502]
[1728562671321,5.04,140.25,140.23,10.97]
[1728562671508,3.5686,140.26,140.23,10.97]
[1728562671712,3.5686,140.26,140.23,14.5392]
[1728562672616,12.17763359,140.26,140.23,14.5392]
[1728562672918,12.17763359,140.26,140.23,3.5692]
[1728562673123,3.5689,140.25,140.22,3.5694]
[1728562674020,3.5689,140.25,140.22,3.5695]
[1728562674415,19.57903359,140.26,140.21,11.09502]
[1728562674615,23.14763359,140.26,140.23,3.5691]
[1728562675729,19.57903359,140.26,140.24,3.5689]
[1728562676623,3.56903359,140.26,140.24,3.5689]
[1728562677018,3.56903359,140.26,140.24,14.5389]
[1728562679130,3.56903359,140.26,140.24,3.5689]
[1728562679324,7.13753359,140.26,140.23,3.5692]
[1728562680731,10.97,140.25,140.23,3.5692]
[1728562682125,18.10753359,140.26,140.23,3.5692]
[1728562682433,18.10753359,140.26,140.22,13.7281]
[1728562682627,18.10753359,140.26,140.24,3.569]
[1728562682823,3.56903359,140.26,140.24,10.97]
[1728562683022,10.97,140.28,140.24,10.97]
[1728562683228,10.97,140.31,140.27,10.97]
[1728562683426,5.04,140.3,140.27,10.97]
[1728562683735,5.04,140.3,140.23,6.4003]
[1728562683736,19.50322162,140.3,140.26,14.5383]
[1728562683928,19.50322162,140.3,140.26,3.5683]
[1728562684130,19.50322162,140.3,140.26,14.5383]
[1728562684431,3.5679,140.29,140.26,14.5383]
[1728562684630,3.5679,140.29,140.27,3.5682]
[1728562686831,19.5776,140.3,140.27,3.5682]
[1728562687134,8.6076,140.3,140.27,14.5382]
[1728562688933,3.5676,140.3,140.27,14.5382]
[1728562689236,3.5678,140.29,140.27,3.5682]
[1728562689835,10.97,140.28,140.23,12.3303]
[1728562690131,10.97,140.28,140.24,3.5689]
[1728562690337,16.01,140.28,140.24,3.5689]
[1728562690538,3.5684,140.27,140.24,3.5689]
[1728562690925,16.01,140.28,140.24,3.5689]
[1728562691126,3.5684,140.27,140.24,3.5689]
[1728562692740,3.5685,140.26,140.24,3.5689]
[1728562694038,16.01,140.28,140.24,3.5689]
[1728562694341,3.5684,140.27,140.24,14.5389]
[1728562695240,3.5685,140.26,140.24,14.5389]
[1728562696140,3.5684,140.27,140.25,3.5688]
[1728562696949,10.97,140.26,140.22,2.7581]
[1728562697246,3.53574989,140.31,140.21,94.20220838]
[1728562697247,10.97,140.24,140.21,94.20220838]
[1728562697448,3.5693,140.23,140.21,97.77190838]
[1728562698443,14.5391,140.24,140.21,97.77190838]
[1728562701543,14.5391,140.24,140.22,3.5695]
[1728562703251,14.5394,140.23,140.21,0.12502]
[1728562703554,10.97,140.22,140.21,0.12502]
[1728562703751,19.5795,140.22,140.21,0.12502]
[1728562704157,19.5795,140.22,140.15,0.12502]
[1728562704158,16.01,140.22,140.15,0.12502]
[1728562704347,14.5404,140.19,140.16,3.5709]
[1728562705942,14.5404,140.19,140.16,3.5708]
[1728562706849,3.5701,140.2,140.18,3.5704]
[1728562707050,5.04,140.21,140.17,10.97]
[1728562707551,5.04,140.21,140.19,3.5702]
[1728562708545,8.6098,140.21,140.18,3.5704]
[1728562708748,5.04,140.21,140.17,10.97]
[1728562708944,8.6099,140.21,140.18,3.5705]
[1728562709346,19.5799,140.21,140.17,10.97]
[1728562709949,10.97,140.2,140.18,3.5705]
[1728562710150,3.5703,140.2,140.16,10.97]
[1728562710353,16.01,140.21,140.16,10.97]
[1728562710649,3.5701,140.2,140.16,10.97]
[1728562711152,14.5401,140.2,140.17,3.5706]
[1728562711553,3.5703,140.19,140.17,3.5706]
[1728562713746,10.97,140.2,140.16,10.97]
[1728562714046,10.97,140.2,140.18,3.5705]
[1728562714753,10.97,140.2,140.17,10.97]
[1728562714948,8.6099,140.21,140.19,3.5702]
[1728562714949,5.04,140.21,140.19,3.5702]
[1728562715855,5.04,140.21,140.17,10.97]
[1728562716150,16.01,140.21,140.16,12.3494]
[1728562716554,3.5702,140.2,140.17,3.5706]
[1728562716859,10.97,140.19,140.17,3.5706]
[1728562717049,14.5402,140.2,140.17,3.5706]
[1728562717245,10.97,140.2,140.16,12.3494]
[1728562717447,3.5705,140.18,140.15,11.09502]
[1728562717749,10.97,140.19,140.15,11.09502]
[1728562717950,14.5404,140.19,140.16,3.5709]
[1728562718249,5.04,140.22,140.18,10.97]
[1728562718450,5.04,140.22,140.19,10.97]
[1728562719859,16.01,140.22,140.17,10.97]
[1728562720557,19.5797,140.22,140.19,3.5702]
[1728562721857,8.6097,140.22,140.19,3.5702]
[1728562722156,5.04,140.22,140.17,12.4002]
[1728562722751,5.04,140.22,140.2,3.57]
[1728562723152,8.6096,140.22,140.2,3.57]
[1728562724053,5.04,140.22,140.2,3.57]
[1728562726350,8.6096,140.22,140.2,3.57]
[1728562727557,8.6096,140.22,140.19,10.97]
[1728562727762,8.6096,140.22,140.19,14.5402]
[1728562728660,16.01,140.22,140.17,12.4002]
[1728562728956,5.04,140.22,140.17,1.4302]
[1728562729157,5.04,140.22,140.18,10.97]
[1728562729560,8.6097,140.22,140.2,3.57]
[1728562731659,5.04,140.22,140.2,3.57]
[1728562731865,14.5394,140.23,140.21,3.5697]
[1728562731866,10.97,140.23,140.21,3.5697]
[1728562732359,14.5393,140.23,140.21,3.5697]
[1728562732758,10.97,140.23,140.19,10.97]
[1728562732961,5.04,140.24,140.22,3.5695]
[1728562733160,10.97,140.25,140.22,3.5695]
[1728562733161,16.01,140.25,140.22,3.5695]
[1728562733562,19.5789,140.25,140.22,3.5695]
[1728562734065,16.01,140.25,140.21,3.5696]
[1728562735468,3.5691,140.24,140.21,3.5696]
[1728562737662,8.73332,140.27,140.24,3.5688]
[1728562738171,5.16502,140.27,140.25,3.5686]
[1728562738870,0.12502,140.27,140.25,3.5686]
[1728562742275,3.69332,140.27,140.25,3.5686]
[1728562742965,3.69332,140.27,140.24,10.97]
[1728562742966,3.69332,140.27,140.24,3.5689]
[1728562743168,14.66332,140.27,140.24,3.5689]
[1728562743666,11.09502,140.27,140.23,10.97]
[1728562743867,10.97,140.25,140.2,10.97]
[1728562744774,3.5692,140.24,140.21,3.5695]
[1728562745077,10.97,140.25,140.21,3.5695]
[1728562745576,3.5691,140.24,140.21,3.5695]
[1728562745978,3.5691,140.24,140.21,10.97]
[1728562746277,3.5691,140.24,140.22,3.5694]
[1728562747575,3.5693,140.23,140.21,3.5697]
[1728562750277,3.5693,140.23,140.2,10.97]
[1728562750278,3.5689,140.25,140.22,14.5393]
[1728562751777,5.04,140.26,140.22,10.97]
[1728562752083,5.04,140.26,140.19,5.04]
[1728562752084,5.04,140.26,140.24,10.97]
[1728562752385,0.12502,140.27,140.24,10.97]
[1728562752570,3.69342,140.27,140.24,14.5388]
[1728562753480,0.12502,140.27,140.24,10.97]
[1728562753685,3.5687,140.26,140.23,14.5392]
[1728562754579,3.5689,140.25,140.19,5.04]
[1728562754777,3.5689,140.25,140.22,3.5694]
[1728562755278,3.5691,140.24,140.21,3.5696]
[1728562756477,3.5697,140.22,140.19,3.5701]
[1728562756686,3.5697,140.22,140.19,14.5401]
[1728562757387,3.5697,140.22,140.2,3.57]
[1728562758887,3.5694,140.23,140.2,14.54]
[1728562759677,3.5694,140.23,140.2,10.97]
[1728562759890,3.5694,140.23,140.21,14.5396]
[1728562760077,16.01,140.25,140.21,10.97]
[1728562760285,3.5691,140.24,140.22,3.5693]
[1728562763590,14.53974753,140.23,140.16,4.2442]
[1728562763786,10.97,140.21,140.17,10.97]
[1728562764087,10.97,140.2,140.16,1.4282]
[1728562764391,10.97,140.2,140.15,105.20928164]
[1728562764786,3.5704,140.19,140.16,3.5708]
[1728562764985,3.5704,140.19,140.16,10.97]
[1728562766393,3.5704,140.19,140.15,0.12502]
[1728562766394,3.5704,140.19,140.17,3.5706]
[1728562767398,3.5706,140.18,140.16,3.5709]
[1728562768187,3.5706,140.18,140.15,14.66622]
[1728562768595,3.5706,140.18,140.15,11.09502]
[1728562768795,3.5706,140.18,140.16,3.571]
[1728562773696,5.04,140.21,140.15,11.09502]
[1728562773997,3.5704,140.19,140.17,3.5707]
[1728562778199,3.5706,140.18,140.16,3.5709]
[1728562778587,10.97,140.19,140.16,3.571]
[1728562778893,3.5706,140.18,140.16,3.571]
[1728562785104,14.5405,140.19,140.16,3.571]
[1728562785291,10.97,140.19,140.16,3.571]
[1728562785496,10.97,140.18,140.15,0.12502]
[1728562785698,14.541,140.16,140.15,0.12502]
[1728562786701,10.97,140.17,140.15,0.12502]
[1728562786897,14.5409,140.17,140.15,3.69612]
[1728562788899,14.5409,140.17,140.15,0.12502]
[1728562789807,3.571,140.16,140.15,0.12502]
[1728562790100,14.541,140.16,140.15,0.12502]
[1728562796900,10.97,140.16,140.09,0.12502]
[1728562797102,1.378,140.19,140.09,0.12502]
[1728562797103,14.5422,140.12,140.09,0.12502]
[1728562797304,19.5822,140.12,140.09,0.12502]